bitfinex-derivatives/quotes_ETHF0:USTF0_20240927
["timestamp","ask_amount","ask_price","bid_price","bid_amount"]
[1727471289208,4.407896,2692.0,2691.9,2.58422551]
[1727471289502,5.86278928,2692.0,2691.9,0.97474019]
[1727471289716,4.407896,2692.0,2691.9,0.97474019]
[1727471290301,5.86275143,2692.0,2691.9,0.97474019]
[1727471290607,5.86275143,2692.0,2691.9,1.34613019]
[1727471290808,5.86275143,2692.0,2691.9,0.97474019]
[1727471291003,5.54062543,2692.0,2691.9,0.97474019]
[1727471291511,0.37139,2691.9,2691.8,1.34613019]
[1727471291711,0.73919,2691.9,2691.8,2.58350953]
[1727471292511,0.73919,2691.9,2691.8,2.21193571]
[1727471294310,0.73919,2691.9,2691.8,2.58333571]
[1727471294514,0.73919,2691.9,2691.8,1.34614019]
[1727471294717,0.73919,2691.9,2691.8,0.97474019]
[1727471294904,0.3714,2691.8,2691.7,0.97474019]
[1727471295107,0.7405,2691.8,2691.7,0.97474019]
[1727471295510,0.37141,2691.7,2691.6,1.34617019]
[1727471295710,0.77321,2691.7,2691.6,2.58293193]
[1727471296006,0.77321,2691.7,2691.6,1.23676174]
[1727471296207,0.77321,2691.7,2691.6,2.21042118]
[1727471296404,0.77321,2691.7,2691.6,0.97365944]
[1727471298420,0.77321,2691.7,2691.6,1.34508944]
[1727471299418,0.77321,2691.7,2691.6,0.97365944]
[1727471299620,0.37143,2691.6,2691.5,0.37144]
[1727471300621,0.77322,2691.7,2691.5,1.34509944]
[1727471300916,0.77322,2691.7,2691.5,0.37144]
[1727471302512,0.37143,2691.6,2691.4,1.34510944]
[1727471302815,0.37143,2691.6,2691.3,1.46278235]
[1727471302816,0.3733,2691.5,2691.3,0.97365944]
[1727471303115,0.3733,2691.5,2691.4,0.37146]
[1727471313427,0.4018,2691.7,2691.6,0.37143]
[1727471313628,0.3691,2691.8,2691.7,0.37141]
[1727471314517,0.3691,2691.8,2691.7,1.34506944]
[1727471317337,4.66265543,2692.3,2691.7,4.68885944]
[1727471317626,0.4069,2692.2,2692.1,0.37135]
[1727471319227,3.2078,2692.3,2692.2,0.37135]
[1727471319421,0.37132,2692.4,2692.0,4.18145944]
[1727471319621,0.37132,2692.4,2692.3,0.37133]
[1727471319822,0.37131,2692.5,2692.3,0.37133]
[1727471320023,3.6147,2692.6,2692.1,1.37405944]
[1727471320226,0.37131,2692.5,2692.3,0.37132]
[1727471321330,0.37131,2692.5,2692.4,0.37132]
[1727471321527,3.986,2692.6,2692.4,0.37132]
[1727471321724,3.986,2692.6,2692.5,0.3713]
[1727471321927,3.6147,2692.6,2692.5,0.3713]
[1727471322228,3.98599,2692.6,2692.4,0.37131]
[1727471322425,3.6147,2692.6,2692.5,0.3713]
[1727471324130,3.6147,2692.6,2692.2,0.7764]
[1727471324323,3.986,2692.6,2692.4,0.37131]
[1727471327830,3.986,2692.6,2692.2,0.7764]
[1727471328031,3.986,2692.6,2692.4,0.37131]
[1727471329928,0.3713,2692.5,2692.4,0.37131]
[1727471330131,3.986,2692.6,2692.4,0.37131]
[1727471330332,3.6147,2692.6,2692.4,0.37131]
[1727471331429,0.3713,2692.5,2692.4,0.37131]
[1727471331733,0.3713,2692.5,2692.4,0.37132]
[1727471334736,0.37136,2692.1,2692.0,0.97365944]
[1727471335031,0.92836,2692.3,2691.8,1.34504944]
[1727471335032,0.37137,2692.0,2691.8,1.34504944]
[1727471335236,1.55747,2692.0,2691.8,1.34504944]
[1727471336035,1.55747,2692.0,2691.8,0.37139]
[1727471336230,1.55747,2692.0,2691.8,1.34504944]
[1727471336435,1.55747,2692.0,2691.8,0.37139]
[1727471336828,1.55747,2692.0,2691.8,1.34504944]
[1727471337634,1.1861,2692.0,2691.8,0.97365944]
[1727471337823,1.1861,2692.0,2691.9,0.37139]
[1727471338022,1.1861,2692.0,2691.8,0.37139]
[1727471339037,1.1861,2692.0,2691.9,0.37139]
[1727471350145,1.1861,2692.0,2691.9,1.34504944]
[1727471354440,1.1861,2692.0,2691.9,2.57850913]
[1727471354946,1.1861,2692.0,2691.9,1.60484969]
[1727471355143,1.1861,2692.0,2691.9,3.06763204]
[1727471355353,1.1861,2692.0,2691.9,1.60484969]
[1727471355554,1.1861,2692.0,2691.9,3.06763204]
[1727471356438,1.1861,2692.0,2691.9,3.06810287]
[1727471358448,1.1861,2692.0,2691.9,1.60532052]
[1727471359537,1.1861,2692.0,2691.9,3.06553569]
[1727471360143,1.1861,2692.0,2691.9,1.60532052]
[1727471360841,1.1861,2692.0,2691.9,3.06559839]
[1727471361556,1.1861,2692.0,2691.9,3.06671453]
[1727471362945,1.45485543,2692.3,2691.9,6.40972453]
[1727471363145,0.3979,2692.4,2692.3,0.37133]
[1727471363346,0.3979,2692.4,2692.3,1.34486166]
[1727471363548,0.7473,2692.5,2692.4,0.37132]
[1727471363747,1.94169945,2692.7,2692.6,0.37129]
[1727471363748,1.45485543,2692.7,2692.6,0.37129]
[1727471363948,1.45868789,2692.9,2692.6,2.20837108]
[1727471364150,1.45868789,2692.9,2692.8,0.37126]
[1727471364653,0.75,2693.0,2692.9,0.37125]
[1727471365246,0.75,2693.0,2692.9,1.34429796]
[1727471365650,0.75,2693.0,2692.9,0.37125]
[1727471366557,0.3979,2693.1,2693.0,0.37124]
[1727471367663,0.3979,2693.1,2693.0,4.08484]
[1727471368060,0.3979,2693.1,2693.0,5.05788796]
[1727471368561,0.3979,2693.1,2693.0,4.08484]
[1727471369866,0.3979,2693.1,2693.0,3.7136]
[1727471370060,0.3979,2693.1,2693.0,0.37124]
[1727471371350,0.3979,2693.1,2693.0,4.08484]
[1727471372965,0.3979,2693.1,2693.0,0.37124]
[1727471379067,0.3979,2693.1,2692.9,3.2078]
[1727471379068,0.4004,2693.2,2693.1,0.37122]
[1727471386078,0.4004,2693.2,2693.1,3.57902]
[1727471386478,0.77161,2693.2,2693.1,3.2078]
[1727471387167,0.37124,2693.0,2692.8,3.57905]
[1727471387572,0.37124,2693.0,2692.8,7.29265]
[1727471388870,0.75183,2693.1,2692.9,0.37125]
[1727471389181,0.3806,2693.1,2692.9,0.37125]
[1727471390183,0.75183,2693.1,2692.9,0.37125]
[1727471397289,0.3806,2693.1,2693.0,0.37124]
[1727471397580,0.3806,2693.1,2692.8,3.2078]
[1727471397581,0.75182,2693.1,2692.9,0.37124]
[1727471398880,0.75182,2693.1,2693.0,0.37124]
[1727471399587,0.3806,2693.1,2693.0,0.37124]
[1727471401680,0.086,2693.8,2693.0,9.7136]
[1727471401886,5.14949945,2693.9,2693.5,0.37117]
[1727471401887,0.7854,2693.6,2693.5,0.37117]
[1727471402087,3.2078,2694.2,2693.9,0.3711]
[1727471402283,0.7886,2694.0,2693.6,0.3892]
[1727471402591,0.7886,2694.0,2693.9,0.37111]
[1727471402891,0.7886,2694.0,2693.6,0.37114]
[1727471402892,0.37111,2693.9,2693.6,0.37114]
[1727471403082,0.37113,2693.8,2693.6,0.37114]
[1727471403396,0.76803,2693.8,2693.6,0.37114]
[1727471403594,0.37114,2693.7,2693.6,0.37114]
[1727471403893,0.37114,2693.7,2693.5,0.37116]
[1727471404082,0.3878,2693.6,2693.5,0.37116]
[1727471408991,0.3878,2693.6,2693.5,1.34420796]
[1727471409385,0.3878,2693.6,2693.5,0.37116]
[1727471409590,0.3878,2693.6,2693.5,1.34420796]
[1727471410695,0.3878,2693.6,2693.5,2.96936361]
[1727471410895,0.3878,2693.6,2693.5,1.99631565]
[1727471411490,0.3969,2693.8,2693.7,0.37114]
[1727471411885,0.3969,2693.8,2693.7,1.34362931]
[1727471413395,0.3969,2693.8,2693.7,0.37114]
[1727471414400,0.3839,2694.0,2693.9,0.37111]
[1727471414594,0.3839,2694.0,2693.9,3.57891]
[1727471414793,1.45868789,2694.3,2693.9,6.9198]
[1727471415000,0.3806,2694.4,2694.3,0.37106]
[1727471448729,0.3806,2694.4,2694.3,1.34300141]
[1727471450630,0.75164,2694.4,2694.3,1.34300141]
[1727471450824,0.3806,2694.4,2694.3,0.37106]
[1727471452421,0.37106,2694.3,2694.2,3.2078]
[1727471452624,0.37107,2694.2,2694.1,0.37108]
[1727471452930,0.37107,2694.2,2694.0,4.55083141]
[1727471453130,0.37107,2694.2,2694.0,3.57889]
[1727471453339,0.37107,2694.2,2694.1,0.37108]
[1727471453721,0.37107,2694.3,2694.1,0.37108]
[1727471454318,0.37107,2694.3,2694.1,1.34302141]
[1727471454523,0.3806,2694.4,2694.2,0.37107]
[1727471455325,2.21033789,2694.4,2694.2,0.37107]
[1727471455526,0.37106,2694.3,2694.2,0.37107]
[1727471456220,2.21033789,2694.4,2694.2,0.37107]
[1727471456424,2.21033789,2694.4,2694.2,1.34301141]
[1727471456623,0.75165,2694.4,2694.2,1.34301141]
[1727471457434,2.21033789,2694.4,2694.3,0.97194141]
[1727471458432,0.75165,2694.4,2694.3,1.23499588]
[1727471459331,0.75165,2694.4,2694.3,2.69490238]
[1727471459539,0.75165,2694.4,2694.3,1.23499588]
[1727471460441,2.21033789,2694.4,2694.3,3.18537235]
[1727471461043,2.21033789,2694.4,2694.3,5.65736465]
[1727471461838,0.75165,2694.4,2694.3,5.65835959]
[1727471462543,0.75165,2694.4,2694.3,6.02941959]
[1727471463344,1.83928789,2694.4,2694.3,6.02941959]
[1727471463642,0.3806,2694.4,2694.3,6.02941959]
[1727471465637,0.75164,2694.4,2694.3,6.02941959]
[1727471466438,2.69333945,2694.4,2694.3,3.06809386]
[1727471466840,2.32229945,2694.4,2694.3,3.06808323]
[1727471468848,2.69333945,2694.4,2694.3,3.06808323]
[1727471470650,2.69333945,2694.4,2694.3,2.69702323]
[1727471471651,2.32229945,2694.4,2694.3,1.83209949]
[1727471471853,2.32229945,2694.4,2694.3,3.0680825]
[1727471472444,2.69333945,2694.4,2694.3,3.0680825]
[1727471473553,1.8407714,2694.4,2694.3,3.55741948]
[1727471474557,1.8407714,2694.4,2694.3,6.02938202]
[1727471476769,0.3806,2694.4,2694.3,6.02938202]
[1727471481665,0.3806,2694.4,2694.3,3.06805543]
[1727471486078,2.32229945,2694.4,2694.3,3.06805543]
[1727471486662,2.69333945,2694.4,2694.3,3.06809441]
[1727471486878,2.32229945,2694.4,2694.3,3.06809441]
[1727471487070,0.3806,2694.4,2694.3,3.06809441]
[1727471487468,2.32229945,2694.4,2694.3,3.06809441]
[1727471488071,0.3806,2694.4,2694.3,3.06809441]
[1727471488274,2.32229945,2694.4,2694.3,3.06809441]
[1727471488772,0.3806,2694.4,2694.3,6.02952867]
[1727471490481,0.75164,2694.4,2694.3,6.02952867]
[1727471490881,0.3806,2694.4,2694.3,6.02952867]
[1727471491179,0.75164,2694.4,2694.3,6.02952867]
[1727471491381,2.21176889,2694.4,2694.3,6.02952867]
[1727471491677,2.21176889,2694.4,2694.3,6.02975969]
[1727471491873,0.3806,2694.4,2694.3,6.02975969]
[1727471493083,1.84072889,2694.4,2694.3,6.02975969]
[1727471493777,0.3806,2694.4,2694.3,6.02975969]
[1727471494077,1.84072889,2694.4,2694.3,6.02769467]
[1727471495677,1.84072889,2694.4,2694.3,6.02777115]
[1727471495982,0.3806,2694.4,2694.3,4.07938322]
[1727471496168,1.84072889,2694.4,2694.3,6.02780483]
[1727471496580,1.84072889,2694.4,2694.3,6.02830086]
[1727471497574,1.84072889,2694.4,2694.3,6.02832174]
[1727471498679,1.84072889,2694.4,2694.3,6.02841897]
[1727471499483,1.84072889,2694.4,2694.3,4.07990013]
[1727471501781,1.84072889,2694.4,2694.3,4.08033035]
[1727471503679,2.32229945,2694.4,2694.3,1.60748345]
[1727471506485,2.32229945,2694.4,2694.3,0.37106]
[1727471506685,2.69333945,2694.4,2694.3,1.6075621]
[1727471506983,2.32229945,2694.4,2694.3,1.6075621]
[1727471510698,1.84092425,2694.4,2694.3,4.08060176]
[1727471511488,1.84092425,2694.4,2694.3,4.08062324]
[1727471512289,2.21196425,2694.4,2694.3,4.08062324]
[1727471512686,1.84092425,2694.4,2694.3,4.08062324]
[1727471513684,2.21196425,2694.4,2694.3,4.08062324]
[1727471513893,1.84092425,2694.4,2694.3,4.08062324]
[1727471516387,1.84092425,2694.4,2694.3,2.84413428]
[1727471516589,1.84092425,2694.4,2694.3,4.08067142]
[1727471517395,2.21196425,2694.4,2694.3,4.08067142]
[1727471518292,1.84092425,2694.4,2694.3,4.08067142]
[1727471518689,2.32229945,2694.4,2694.3,1.60759714]
[1727471520793,2.32229945,2694.4,2694.3,1.60761855]
[1727471521394,1.94169945,2694.4,2694.3,1.60761855]
[1727471521594,1.94169945,2694.4,2694.3,4.34965912]
[1727471521797,2.71019945,2694.5,2694.3,3.97859912]
[1727471521992,2.71569783,2694.5,2694.4,3.06927677]
[1727471522598,2.71560879,2694.5,2694.4,3.06927677]
[1727471523096,0.7685,2694.5,2694.4,3.06927677]
[1727471524291,2.71551108,2694.5,2694.4,3.06927677]
[1727471524802,2.71551108,2694.5,2694.4,3.06917879]
[1727471525897,2.22844787,2694.5,2694.4,6.02933045]
[1727471527397,14.98611,2694.5,2694.4,0.97445561]
[1727471527593,6.78113342,2694.5,2694.4,0.97445561]
[1727471527789,6.78114481,2694.5,2694.4,0.97445561]
[1727471528498,4.34733,2694.5,2694.4,0.97445561]
[1727471528894,0.37104,2694.4,2694.3,1.46167178]
[1727471529093,2.31740608,2694.4,2694.3,1.46167178]
[1727471529291,0.37104,2694.4,2694.3,1.83273178]
[1727471529800,2.31740608,2694.4,2694.3,1.46167178]
[1727471530206,2.31740608,2694.4,2694.3,1.83273178]
[1727471530391,0.37104,2694.4,2694.3,1.83273178]
[1727471530598,0.75744,2694.4,2694.3,1.83273178]
[1727471530803,0.75744,2694.4,2694.3,1.46167178]
[1727471531796,0.75744,2694.4,2694.3,1.83273178]
[1727471532104,0.75744,2694.4,2694.3,1.46167178]
[1727471535794,0.37106,2694.3,2694.2,1.46167178]
[1727471535999,1.8306577,2694.3,2694.2,1.46167178]
[1727471536200,9.23722608,2694.3,2694.2,0.97388239]
[1727471536398,0.37107,2694.2,2694.1,0.97388239]
[1727471536700,2.31743608,2694.2,2694.1,0.97388239]
[1727471536899,6.02943608,2694.2,2694.1,0.97388239]
[1727471537102,4.08307,2694.2,2694.1,0.97388239]
[1727471537301,0.37107,2694.2,2694.1,0.97388239]
[1727471538307,1.82980759,2694.2,2694.1,0.97388239]
[1727471538715,0.37107,2694.2,2694.1,0.97388239]
[1727471539304,1.82962102,2694.2,2694.1,0.97388239]
[1727471539807,5.54162102,2694.2,2694.1,0.97388239]
[1727471540008,1.82962102,2694.2,2694.1,0.97388239]
[1727471540207,0.37108,2694.1,2694.0,0.97388239]
[1727471540407,0.74668,2694.1,2694.0,0.97388239]
[1727471540808,0.3711,2694.0,2693.9,1.71158239]
[1727471541005,1.829826,2694.0,2693.9,1.71158239]
[1727471543411,0.3711,2694.0,2693.9,1.71158239]
[1727471544011,2.205416,2694.1,2694.0,0.3711]
[1727471544216,2.205416,2694.1,2694.0,1.1444]
[1727471544715,2.205416,2694.1,2694.0,0.7733]
[1727471547807,2.205416,2694.1,2694.0,1.1444]
[1727471548009,1.834326,2694.1,2694.0,1.1444]
[1727471548219,2.205406,2694.1,2694.0,1.1444]
[1727471549020,0.74668,2694.1,2694.0,2.11828239]
[1727471549417,0.74668,2694.1,2694.0,1.74718239]
[1727471551027,0.3756,2694.1,2694.0,2.11828239]
[1727471551314,0.37107,2694.2,2694.1,0.37107]
[1727471551515,0.76627,2694.2,2694.1,0.37107]
[1727471552424,0.76627,2694.2,2694.0,2.11827239]
[1727471556121,2.224996,2694.2,2694.0,1.14439]
[1727471557509,2.224996,2694.2,2694.0,0.7733]
[1727471557715,2.224996,2694.2,2694.1,0.37108]
[1727471560520,1.853926,2694.2,2694.0,0.7733]
[1727471560724,1.853926,2694.2,2693.8,1.46167178]
[1727471560725,2.386446,2694.1,2693.8,0.97388239]
[1727471560928,0.37111,2693.9,2693.7,1.34502239]
[1727471561123,0.37112,2693.8,2693.7,0.97388239]
[1727471561316,0.75292,2693.8,2693.7,2.19928432]
[1727471561521,0.3818,2693.8,2693.7,2.19928432]
[1727471563637,0.75292,2693.8,2693.7,2.19928432]
[1727471563925,0.75292,2693.8,2693.7,2.68703537]
[1727471564429,0.3818,2693.8,2693.7,2.68703537]
[1727471569738,0.3818,2693.8,2693.7,3.05817537]
[1727471570430,0.3818,2693.8,2693.7,1.59650359]
[1727471571026,0.3818,2693.8,2693.7,3.05597374]
[1727471571522,0.3818,2693.8,2693.7,1.59650359]
[1727471575331,0.3818,2693.8,2693.7,3.54544416]
[1727471576826,0.3818,2693.8,2693.7,5.99800272]
[1727471579029,2.60155324,2694.1,2693.9,0.3711]
[1727471579234,2.99765324,2694.1,2694.0,2.19895081]
[1727471579729,1.53909,2694.1,2694.0,2.19895081]
[1727471580135,2.99857447,2694.1,2694.0,2.19895081]
[1727471580323,1.53909,2694.1,2694.0,2.19895081]
[1727471581332,1.53909,2694.1,2694.0,1.22536359]
[1727471581638,1.53909,2694.1,2694.0,2.19923527]
[1727471582332,1.53909,2694.1,2694.0,1.22680814]
[1727471582727,3.48545608,2694.1,2694.0,0.97389066]
[1727471583831,1.53909,2694.1,2694.0,2.20072122]
[1727471585539,1.53909,2694.1,2694.0,2.57182122]
[1727471585742,1.53909,2694.1,2694.0,2.20072122]
[1727471587240,1.46021565,2694.1,2694.0,3.05831139]
[1727471587444,1.46021565,2694.1,2694.0,3.81361139]
[1727471587740,1.46021565,2694.1,2694.0,2.35323056]
[1727471588141,1.46021565,2694.2,2694.1,0.37108]
[1727471588448,1.46021565,2694.2,2694.1,3.05859956]
[1727471591856,1.46021565,2694.2,2694.1,3.05838812]
[1727471593351,1.46021565,2694.3,2694.2,0.37107]
[1727471593551,1.83127565,2694.3,2694.2,1.59768912]
[1727471594153,2.31742608,2694.3,2694.2,1.34466413]
[1727471595357,2.31742608,2694.3,2694.2,0.37107]
[1727471595563,2.31742608,2694.3,2694.1,1.34467413]
[1727471595868,1.46021851,2694.2,2694.1,1.34467413]
[1727471596161,1.46021851,2694.2,2694.1,2.57111478]
[1727471596758,1.46021851,2694.2,2694.1,1.34467413]
[1727471597062,1.46021851,2694.2,2694.1,2.57106089]
[1727471598857,1.83128851,2694.2,2694.1,2.57106089]
[1727471600759,1.83128851,2694.2,2694.0,1.72889413]
[1727471600760,0.37108,2694.1,2694.0,1.72889413]
[1727471600964,0.77528,2694.1,2694.0,1.72889413]
[1727471601166,0.77528,2694.1,2694.0,0.7553]
[1727471601468,2.23548256,2694.1,2694.0,2.95525565]
[1727471601762,2.23548256,2694.1,2694.0,1.98165252]
[1727471602162,2.23548256,2694.1,2694.0,3.81344152]
[1727471603769,1.86440256,2694.1,2694.0,3.81344152]
[1727471603976,0.4042,2694.1,2694.0,7.52544152]
[1727471604266,5.03908256,2694.2,2694.1,0.37108]
[1727471604466,0.37108,2694.1,2694.0,2.587079]
[1727471604667,0.37108,2694.1,2694.0,3.81337689]
[1727471604868,0.37108,2694.1,2694.0,7.52537689]
[1727471605167,0.37108,2694.1,2694.0,4.21077689]
[1727471605570,0.37108,2694.1,2694.0,7.92277689]
[1727471606569,0.37108,2694.1,2694.0,7.92277407]
[1727471607574,5.05740256,2694.2,2694.1,0.37108]
[1727471607575,5.42848256,2694.2,2694.1,0.37108]
[1727471607770,5.42848256,2694.2,2694.1,2.57085139]
[1727471609063,5.42848256,2694.2,2694.1,2.19977139]
[1727471609267,5.91464608,2694.2,2694.1,0.37108]
[1727471610470,5.91464608,2694.2,2694.0,6.20926632]
[1727471610471,0.37108,2694.1,2694.0,6.20926632]
[1727471610667,1.83135494,2694.1,2694.0,7.43561695]
[1727471612068,1.46027494,2694.1,2694.0,7.43561695]
[1727471612575,1.83135494,2694.1,2694.0,7.43561695]
[1727471613867,1.8314355,2694.1,2694.0,7.43572801]
[1727471614070,0.37108,2694.1,2694.0,7.43572801]
[1727471614268,0.37108,2694.1,2694.0,7.43575317]
[1727471614974,1.8314904,2694.1,2694.0,7.92296585]
[1727471615176,1.4604104,2694.1,2694.0,7.92296585]
[1727471616377,1.4604104,2694.2,2694.1,0.37108]
[1727471616582,1.8314804,2694.2,2694.1,3.05789986]
[1727471617978,1.8314804,2694.2,2694.1,3.05790748]
[1727471619985,1.4604104,2694.2,2694.1,3.05790748]
[1727471620170,1.8314804,2694.2,2694.1,3.05790748]
[1727471621377,1.8314804,2694.2,2694.1,3.05803267]
[1727471624885,1.8314804,2694.2,2694.1,3.05828927]
[1727471625079,1.8314804,2694.2,2694.1,1.59769966]
[1727471625274,0.37107,2694.2,2694.1,1.22661966]
[1727471625475,5.5434804,2694.2,2694.1,2.68703739]
[1727471625676,6.02943608,2694.2,2694.1,0.97372757]
[1727471626396,4.08307,2694.2,2694.1,2.20034268]
[1727471626690,6.02943608,2694.2,2694.1,0.973709]
[1727471628186,6.02943608,2694.2,2694.1,2.20046343]
[1727471630882,2.31743608,2694.2,2694.1,2.20046343]
[1727471631187,6.02943608,2694.2,2694.1,2.20046343]
[1727471631385,4.08307,2694.2,2694.1,0.973709]
[1727471632688,4.08307,2694.2,2694.0,0.973709]
[1727471632883,2.7211066,2694.1,2694.0,0.973709]
[1727471633087,2.7211066,2694.1,2694.0,1.22696245]
[1727471636183,2.7211066,2694.1,2694.0,1.22698445]
[1727471637895,2.7211066,2694.1,2694.0,1.59808445]
[1727471638395,2.7211066,2694.1,2694.0,3.05850218]
[1727471638396,2.23408779,2694.1,2694.0,3.05850218]
[1727471638985,2.23408779,2694.1,2694.0,2.68740218]
[1727471639297,3.01048779,2694.1,2694.0,3.05850218]
[1727471639890,3.01048779,2694.1,2694.0,1.59808445]
[1727471640299,1.54948,2694.1,2694.0,2.68799911]
[1727471640499,1.1784,2694.1,2694.0,3.05909911]
[1727471640795,1.1784,2694.1,2694.0,3.05914624]
[1727471640987,1.54948,2694.1,2694.0,3.05914624]
[1727471641187,3.01052627,2694.1,2694.0,3.05914624]
[1727471642295,1.54948,2694.1,2694.0,3.05914624]
[1727471643994,3.01058519,2694.1,2694.0,3.05914624]
[1727471644201,1.54948,2694.1,2694.0,3.05914624]
[1727471646401,3.4975066,2694.1,2694.0,3.05914624]
[1727471652405,3.4975066,2694.1,2694.0,1.59813158]
[1727471652594,3.4975066,2694.1,2694.0,3.05914624]
[1727471653399,3.01042311,2694.1,2694.0,1.59813158]
[1727471654302,3.01042311,2694.1,2694.0,1.59821296]
[1727471655302,1.54948,2694.1,2694.0,3.0593628]
[1727471655700,3.4975066,2694.1,2694.0,3.0593628]
[1727471656407,1.54948,2694.1,2694.0,3.0593628]
[1727471659013,1.54948,2694.1,2694.0,3.05934455]
[1727471661508,3.4975066,2694.1,2694.0,2.57228503]
[1727471662507,3.4975066,2694.1,2694.0,1.34519032]
[1727471662901,1.54948,2694.1,2694.0,1.34519032]
[1727471663603,3.49753837,2694.1,2694.0,1.34519032]
[1727471663803,3.49753837,2694.1,2694.0,2.572315]
[1727471664108,3.49760687,2694.1,2694.0,1.34519032]
[1727471665914,3.49760687,2694.1,2694.0,1.74689032]
[1727471666915,3.49760687,2694.1,2694.0,2.97409865]
[1727471667714,3.49760687,2694.1,2694.0,2.00000833]
[1727471667909,3.49760687,2694.1,2694.0,2.97420467]
[1727471668104,3.49760687,2694.1,2694.0,2.00000833]
[1727471668520,1.54948,2694.1,2694.0,3.46115817]
[1727471668711,1.54948,2694.1,2694.0,3.46125231]
[1727471669015,3.49760687,2694.1,2694.0,3.46125231]
[1727471671117,3.49760687,2694.1,2694.0,2.00010247]
[1727471671317,3.49760687,2694.1,2694.0,3.46183985]
[1727471673309,1.54948,2694.1,2694.0,2.20127786]
[1727471673511,5.64161481,2694.2,2694.0,2.20074138]
[1727471673715,3.57887,2694.2,2694.1,1.34187539]
[1727471673921,3.57887,2694.2,2694.1,1.99877206]
[1727471674112,5.52754829,2694.2,2694.1,1.99877206]
[1727471674313,5.52754829,2694.2,2694.1,3.46050944]
[1727471675010,5.52754829,2694.2,2694.1,1.99877206]
[1727471675213,3.57887,2694.2,2694.1,1.7459148]
[1727471675414,3.57887,2694.2,2694.1,2.1169948]
[1727471675615,3.57887,2694.2,2694.1,2.97294581]
[1727471678022,3.57887,2694.2,2694.1,3.34402581]
[1727471678224,3.57887,2694.2,2694.1,2.1169948]
[1727471678422,3.57887,2694.2,2694.1,2.97313906]
[1727471678714,3.57887,2694.2,2694.1,1.7459148]
[1727471678918,3.57887,2694.2,2694.1,3.34455092]
[1727471679111,3.57887,2694.2,2694.1,1.99930858]
[1727471679306,5.52751587,2694.2,2694.1,2.37038858]
[1727471679913,3.57887,2694.2,2694.1,3.34456483]
[1727471680119,3.57887,2694.2,2694.1,2.11735625]
[1727471680509,3.57887,2694.2,2694.1,1.74627625]
[1727471681122,3.57887,2694.2,2694.1,2.9734299]
[1727471683517,3.57887,2694.2,2694.1,1.74627625]
[1727471683719,6.01268481,2694.2,2694.1,0.7721]
[1727471684313,6.41108481,2694.2,2694.1,0.7721]
[1727471684824,6.41108481,2694.2,2694.1,1.74627625]
[1727471685217,6.41108481,2694.2,2694.1,0.7721]
[1727471689521,3.20328481,2694.2,2694.1,0.7721]
[1727471689716,6.41108481,2694.2,2694.1,0.7721]
[1727471690725,6.41108481,2694.2,2694.1,1.74627625]
[1727471691827,3.97727,2694.2,2694.1,1.74627625]
[1727471692823,3.97727,2694.2,2694.1,2.97347588]
[1727471693428,3.97727,2694.2,2694.1,2.97346379]
[1727471693928,3.97727,2694.2,2694.1,1.74627625]
[1727471694823,0.76947,2694.2,2694.1,1.74627625]
[1727471695015,3.97727,2694.2,2694.1,1.74627625]
[1727471697331,6.41108481,2694.2,2694.1,1.74627625]
[1727471697527,7.33876481,2694.2,2694.1,1.34207625]
[1727471697722,7.33876481,2694.2,2694.1,0.97417625]
[1727471698731,0.37108,2694.1,2694.0,1.34357625]
[1727471698930,3.95368,2694.1,2694.0,1.34357625]
[1727471699127,6.38749481,2694.1,2694.0,1.34357625]
[1727471700230,6.38749481,2694.1,2694.0,0.97417625]
[1727471700732,6.38749481,2694.1,2693.8,0.97417625]
[1727471700733,4.51032,2694.1,2693.8,0.97417625]
[1727471700925,2.80746292,2693.9,2693.8,0.97417625]
[1727471701123,0.37112,2693.8,2693.7,1.73490625]
[1727471701322,5.9263082,2693.8,2693.7,2.96241922]
[1727471701629,5.9263082,2693.8,2693.7,1.61695059]
[1727471701934,6.3179082,2693.8,2693.7,1.22735059]
[1727471702124,6.3179082,2693.8,2693.7,2.20168141]
[1727471702332,6.3179082,2693.8,2693.7,0.97433082]
[1727471702528,6.3179082,2693.8,2693.7,1.34547082]
[1727471703836,7.2457282,2693.8,2693.7,0.97433082]
[1727471704037,1.29904,2693.6,2693.5,0.344]
[1727471704230,0.37118,2693.4,2693.3,1.34551082]
[1727471704834,0.76128,2693.4,2693.3,1.34551082]
[1727471705135,1.45948297,2693.4,2693.3,5.05831082]
[1727471705336,1.45948297,2693.5,2693.4,0.37118]
[1727471705536,1.45948297,2693.6,2693.5,0.37117]
[1727471705738,1.45948297,2693.6,2693.5,1.14347]
[1727471706836,1.45948297,2693.7,2693.6,0.37115]
[1727471707546,5.43001297,2693.8,2693.6,0.37115]
[1727471708042,5.43001297,2693.8,2693.6,1.3445056]
[1727471708344,1.45948297,2693.7,2693.6,0.37115]
[1727471709540,5.43001297,2693.8,2693.6,0.37115]
[1727471710042,5.43000297,2693.8,2693.7,0.37114]
[1727471710437,5.43000297,2693.8,2693.6,0.37114]
[1727471711139,5.43000297,2693.8,2693.7,0.37114]
[1727471711436,5.43000297,2693.8,2693.6,0.37114]
[1727471712239,0.37114,2693.7,2693.6,0.37114]
[1727471712947,0.37114,2693.7,2693.6,0.37115]
[1727471715243,5.43001297,2693.8,2693.7,0.37114]
[1727471715548,0.37114,2693.7,2693.6,0.37114]
[1727471715846,0.37114,2693.7,2693.6,1.3444956]
[1727471716237,0.37114,2693.7,2693.6,0.37114]
[1727471716933,5.03841297,2693.8,2693.7,0.37114]
[1727471717138,3.57893,2693.8,2693.7,0.37114]
[1727471717337,0.37114,2693.7,2693.6,0.37115]
[1727471717646,0.37114,2693.7,2693.6,1.3445056]
[1727471718345,5.44128297,2693.9,2693.7,0.37113]
[1727471718346,0.37113,2693.8,2693.7,0.37113]
[1727471719048,0.37114,2693.7,2693.6,1.3445056]
[1727471720346,5.44128297,2693.9,2693.7,0.37113]
[1727471720547,0.37112,2693.8,2693.7,0.37113]
[1727471723344,0.37112,2693.8,2693.6,1.3444956]
[1727471724250,0.37114,2693.7,2693.6,1.3444956]
[1727471724448,0.37114,2693.7,2693.6,0.9733556]
[1727471724653,0.37115,2693.6,2693.5,2.1168156]
[1727471724853,0.76335,2693.6,2693.5,2.1168156]
[1727471725150,0.76335,2693.6,2693.5,2.5186156]
[1727471725647,0.3922,2693.6,2693.5,2.5186156]
[1727471726855,1.45948297,2693.8,2693.7,0.37114]
[1727471727161,0.37112,2693.8,2693.7,2.19862458]